Workbook

Sheet ORIENTAÇÕES PARA PREENCHIMENTO

Sheet SIMULAÇÃO
A1: SIMULAÇÃO DE CUSTOS PARA PLANTA DE PRODUÇÃO DE BIODIESEL | J1: Capacidade padrão | L1: 1000
A3: Capacidade produtiva desejada para sua planta, em l/d (multiplos de 1.000 l/dia) | D3: 1,000 | E3: Dias de produção | F3: 312 | G3: Preço médio BD ANP | H3: R$ 2.255
A4: Inserir cotação atual do dólar ($ -> R$) | D4: R$ 3.34 | E4: Preço Diesel | F4: R$ 2.94 | G4: Preço máx. BD ANP | H4: R$ 2.827
A6: CUSTOS DE INVESTIMENTO - CAPEX
A7: ITEM | B7: CATEGORIA | C7: UNIDADE (U) | D7: CUSTO UNITÁRIO ($/U) | E7: QUANTIDADE (Q) | F7: CUSTO TOTAL ($) | G7: CUSTO TOTAL (R$)
A8: Capital Fixo de Investimento (CFI) | B8: CFI | C8: Quantidade de plantas | D8: $173,000.00 | E8: 1 | F8: =(D8*E8)*($D$3/$L$1) -> $173,000.00 | G8: =F8*$D$4 -> R$ 577,820.00
A9: Capital de Giro | B9: Capital Rotativo | C9: Dias | D9: $619.93 | E9: 30 | F9: =(D9*E9)*($D$3/$L$1) -> $18,598.00 | G9: =F9*$D$4 -> R$ 62,117.32
A11: TOTAL CAPEX ($) | F11: =SUM(F8:F9) -> $191,598.00 | G11: =F11*D4 -> R$ 639,937.32
A13: CUSTOS DE OPERAÇÃO - OPEX
A14: ITEM | B14: CATEGORIA | C14: UNIDADE (U) | D14: CUSTO UNITÁRIO ($/U) | E14: QUANTIDADE (Q) | F14: CUSTO TOTAL ($) | G14: CUSTO TOTAL (R$)
A15: Álcool (metanol) | B15: Reagentes | C15: kg | D15: $0.28 | E15: =1220*82.78 -> 100,992 | F15: =(D15*E15)*($D$3/$L$1) -> $28,277.65 | G15: =F15*$D$4 -> R$ 94,447.34
A16: Hidróxido de Sódio | B16: Reagentes | C16: kg | D16: $0.71 | E16: =1220*3.75 -> 4,575 | F16: =(D16*E16)*($D$3/$L$1) -> $3,248.25 | G16: =F16*$D$4 -> R$ 10,849.16
A17: OGR | B17: Reagentes | C17: kg | D17: 0 | E17: 0 | F17: =(D17*E17)*($D$3/$L$1) -> 0 | G17: =F17*$D$4 -> 0
A18: Filtro de purificação | B18: Consumíveis | C18: unidade | D18: $54.35 | E18: _ | F18: =36871*($D$3/$L$1) -> $36,871.00 | G18: =F18*D4 -> R$ 123,149.14
A19: Resina de adsorção | B19: Consumíveis | C19: kg | D19: $3.76 | E19: _
A20: Catadores operadores (2 op 3 turn) | B20: Pessoal | C20: homem-hora | D20: =D21/2 -> $3.27 | E20: =3*8*312 -> 7,488 | F20: =(D20*E20)*($D$3/$L$1) -> $24,456.18 | G20: =F20*$D$4 -> R$ 81,683.65
A21: Coordenador técnico | B21: Pessoal | C21: homem-hora | D21: $6.53 | E21: =1*8*312 -> 2,496 | F21: =(D21*E21)*($D$3/$L$1) -> $16,304.12 | G21: =F21*$D$4 -> R$ 54,455.77
A22: Água de resfriamento | B22: Utilidades | C22: t | D22: $0.29 | E22: _ | F22: =3212.343*($D$3/$L$1) -> $3,212.34 | G22: =F22*D4 -> R$ 10,729.23
A23: Vapor de baixa pressão | B23: Utilidades | C23: t | D23: $18.15 | E23: _
A24: Eletricidade | B24: Utilidades | C24: kWh | D24: $0.08 | E24: 7,779 | F24: =D24*E24 -> $645.66 | G24: =F24*$D$4 -> R$ 2,156.49
A25: Manutenção de equipamentos | B25: Facilidades | C25: % | D25: =$F$8 -> $173,000.00 | E25: 5% | F25: =D25*0.05 -> $8,650.00 | G25: R$ 28,891.00
A26: Depreciação | B26: Facilidades | C26: % | D26: =$F$8 -> $173,000.00 | E26: 1.5% | F26: =D26*0.014879 -> $2,574.07 | G26: R$ 8,597.38
A27: Seguro | B27: Facilidades | C27: % | D27: =$F$8 -> $173,000.00 | E27: 1% | F27: =D27*0.01 -> $1,730.00 | G27: R$ 5,778.20
A28: Impostos locais | B28: Facilidades | C28: % | D28: =$F$8 -> $173,000.00 | E28: 2% | F28: =D28*0.02 -> $3,460.00 | G28: R$ 11,556.40
A29: Despesas de fábrica | B29: Facilidades | C29: % | D29: =$F$8 -> $173,000.00 | E29: 5% | F29: =D29*0.05 -> $8,650.00 | G29: R$ 28,891.00
A31: TOTAL OPEX ANUAL ($) | F31: =SUM(F13:F29) -> $138,079.27 | G31: =F31*D4 -> R$ 461,184.76
A32: OPEX MENSAL ($) | F32: =F31/12 -> $11,506.61 | G32: =F32*D4 -> R$ 38,432.06

Sheet Plan3 (hidden)

Sheet RESUMO
A1: RESUMO
A3: ITEM | B3: DÓLAR ($) | C3: REAL (R$) | D3: DESCRIÇÃO
A4: CAPEX TOTAL | B4: =SIMULAÇÃO!F11 -> $191,598.00 | C4: =SIMULAÇÃO!G11 -> R$ 639,937.32 | D4: Custo de investimento total
A5: OPEX ANUAL | B5: =SIMULAÇÃO!F31 -> $138,079.27 | C5: =SIMULAÇÃO!G31 -> R$ 461,184.76 | D5: Custo operacional anual
A6: OPEX MENSAL | B6: =SIMULAÇÃO!F32 -> $11,506.61 | C6: =SIMULAÇÃO!G32 -> R$ 38,432.06 | D6: Custo operacional mensal
A7: CUSTO DE PRODUÇÃO | B7: =B5/(SIMULAÇÃO!$D$3*SIMULAÇÃO!$F$3) -> $0.44 | C7: =C5/(SIMULAÇÃO!$D$3*SIMULAÇÃO!$F$3) -> R$ 1.48 | D7: Custo de produção do litro de biodiesel
A8: SOBRA OTIMISTA | B8: _ | C8: =SIMULAÇÃO!H4-C7 -> R$ 1.35 | D8: Sobra em caso de venda no preço máximo de referência do Leilão da ANP
A9: SOBRA MÉDIA | B9: _ | C9: =SIMULAÇÃO!H3-C7 -> R$ 0.78 | D9: Sobra em caso de venda no preço médio do Leilão da ANP
A10: ECONOMIA DIESEL | B10: _ | C10: =SIMULAÇÃO!F4-C7 -> R$ 1.46 | D10: Economia em cada litro de combustível pela utilização de próprio
